bitfinex/quotes_ETHUSD_20250908
["timestamp","ask_amount","ask_price","bid_price","bid_amount"]
[1757352294347,15.01083565,4338.6,4338.5,14.85422911]
[1757352294503,15.19723565,4338.6,4338.5,14.85222911]
[1757352294708,15.19723565,4338.6,4338.5,10.98722911]
[1757352294937,15.19723565,4338.6,4338.5,14.85222911]
[1757352295142,15.19723565,4338.6,4338.5,10.98722911]
[1757352295360,15.19723565,4338.6,4338.5,14.85122911]
[1757352295838,16.42723565,4338.6,4338.5,14.85122911]
[1757352296605,16.24083565,4338.6,4338.5,14.85122911]
[1757352297017,17.47083565,4338.6,4338.5,14.85122911]
[1757352297426,17.47083565,4338.6,4338.5,17.46072911]
[1757352297640,17.47083565,4338.6,4338.5,17.90702911]
[1757352298006,17.47083565,4338.6,4338.5,15.60412911]
[1757352298321,17.47083565,4338.6,4338.5,15.15782911]
[1757352298658,18.70083565,4338.6,4338.5,15.15782911]
[1757352299152,18.70083565,4338.6,4338.5,14.85122911]
[1757352299951,20.11723565,4338.6,4338.5,14.85122911]
[1757352300829,21.4993165,4338.6,4338.5,11.84922911]
[1757352301032,21.4993165,4338.6,4338.5,14.84922911]
[1757352301556,22.7293165,4338.6,4338.5,14.84922911]
[1757352302931,23.9593165,4338.6,4338.5,14.84922911]
[1757352304364,25.1893165,4338.6,4338.5,14.84922911]
[1757352304738,25.1893165,4338.6,4338.5,14.84822911]
[1757352305368,25.0029165,4338.6,4338.5,14.84822911]
[1757352305803,26.2329165,4338.6,4338.5,15.14462911]
[1757352306318,26.2329165,4338.6,4338.5,14.84822911]
[1757352306825,26.4311165,4338.6,4338.5,14.84822911]
[1757352307038,24.85083565,4338.6,4338.5,17.51742911]
[1757352307215,26.08083565,4338.6,4338.5,18.25174682]
[1757352307377,26.08083565,4338.6,4338.5,17.95912911]
[1757352308714,27.31083565,4338.6,4338.5,17.95912911]
[1757352308913,27.31083565,4338.6,4338.5,15.14462911]
[1757352309114,29.77694362,4338.6,4338.5,14.84622911]
[1757352310114,31.00694362,4338.6,4338.5,14.84622911]
[1757352310494,28.54083565,4338.6,4338.5,17.95712911]
[1757352310677,28.54083565,4338.6,4338.5,18.24974682]
[1757352311296,29.77083565,4338.6,4338.5,18.24974682]
[1757352312579,31.00083565,4338.6,4338.5,17.95712911]
[1757352314050,32.23083565,4338.6,4338.5,17.95712911]
[1757352315229,33.46083565,4338.6,4338.5,17.95712911]
[1757352316648,34.69083565,4338.6,4338.5,17.95712911]
[1757352318054,35.92083565,4338.6,4338.5,17.95712911]
[1757352319450,35.92083565,4338.6,4338.5,18.18752911]
[1757352319651,37.15083565,4338.6,4338.5,18.18752911]
[1757352321049,38.38083565,4338.6,4338.5,18.18752911]
[1757352322422,39.61083565,4338.6,4338.5,18.18752911]
[1757352323026,39.61083565,4338.6,4338.5,15.14262911]
[1757352323228,39.61083565,4338.6,4338.5,14.84622911]
[1757352323535,40.31913966,4338.6,4338.5,10.98722911]
[1757352323865,41.54913966,4338.6,4338.5,14.84222911]
[1757352324016,41.54913966,4338.6,4338.5,10.98722911]
[1757352324420,41.54913966,4338.6,4338.5,14.84222911]
[1757352324646,41.98883966,4338.6,4338.5,10.98722911]
[1757352324846,44.48423966,4338.6,4338.5,14.84222911]
[1757352325065,45.71423966,4338.6,4338.5,14.84222911]
[1757352325367,42.77913966,4338.6,4338.5,14.84222911]
[1757352326833,44.00913966,4338.6,4338.5,14.84222911]
[1757352327643,43.30083565,4338.6,4338.5,15.13862911]
[1757352327842,43.30083565,4338.6,4338.5,17.95312911]
[1757352328060,43.49903565,4338.6,4338.5,14.84222911]
[1757352328262,44.72903565,4338.6,4338.5,14.84222911]
[1757352328652,44.53083565,4338.6,4338.5,14.84222911]
[1757352328852,44.73143565,4338.6,4338.5,14.84222911]
[1757352329579,46.99934362,4338.6,4338.5,10.98722911]
[1757352329780,48.66664362,4338.6,4338.5,14.84022911]
[1757352330077,48.22934362,4338.6,4338.5,14.84022911]
[1757352330881,48.66664362,4338.6,4338.5,10.98722911]
[1757352331044,52.36044362,4338.6,4338.5,14.84022911]
[1757352331383,52.36044362,4338.6,4338.5,10.98722911]
[1757352331683,52.36044362,4338.6,4338.5,14.84122911]
[1757352332201,53.15244362,4338.6,4338.5,14.15]
[1757352332361,54.38244362,4338.6,4338.5,14.15]
[1757352332572,56.68733459,4338.6,4338.5,7.296]
[1757352332899,59.11133459,4338.6,4338.5,11.15]
[1757352333103,59.11133459,4338.6,4338.5,14.15]
[1757352333265,59.11133459,4338.6,4338.5,11.15]
[1757352333643,59.11133459,4338.6,4338.5,14.15]
[1757352333884,60.34133459,4338.6,4338.5,14.15]
[1757352335302,61.57133459,4338.6,4338.5,14.15]
[1757352335452,68.45867427,4338.6,4338.5,7.296]
[1757352335651,68.45867427,4338.6,4338.5,11.149]
[1757352335888,61.57133459,4338.6,4338.5,11.149]
[1757352336646,69.68867427,4338.6,4338.5,1.77]
[1757352336874,69.68867427,4338.6,4338.5,5.367]
[1757352337511,0.792,4338.2,4338.0,0.002]
[1757352337686,12.71820469,4338.1,4338.0,0.002]
[1757352337994,15.81990469,4338.1,4338.0,1.77]
[1757352338282,17.04990469,4338.1,4338.0,1.77]
[1757352338910,17.04990469,4338.1,4338.0,5.625]
[1757352339617,18.27990469,4338.1,4338.0,5.625]
[1757352340173,18.27990469,4338.1,4338.0,5.624]
[1757352340870,19.50990469,4338.1,4338.0,5.624]
[1757352341339,19.50990469,4338.1,4338.0,1.77]
[1757352341471,19.50990469,4338.1,4337.8,0.025]
[1757352341472,5.52126291,4337.9,4337.8,0.025]
[1757352341678,7.70278498,4337.9,4337.8,0.025]
[1757352341871,10.80448498,4337.9,4337.8,3.88]
[1757352342273,3.216,4337.7,4337.6,1.77]
[1757352342486,12.40870888,4337.7,4337.6,1.769]
[1757352342774,12.40870888,4337.7,4337.1,0.02]
[1757352342775,5.52163497,4337.2,4337.1,1.76900001]
[1757352342974,9.50705473,4337.2,4337.1,1.76900001]
[1757352343484,9.50705473,4337.2,4337.1,5.63100001]
[1757352343691,10.73705473,4337.2,4337.1,5.63100001]
[1757352345486,11.96705473,4337.2,4337.1,5.63100001]
[1757352346539,5.96095473,4337.2,4337.1,5.63100001]
[1757352346695,5.64835473,4337.2,4337.1,5.93430001]
[1757352346898,7.67035473,4337.2,4337.1,5.63100001]
[1757352347105,7.98295473,4337.2,4337.1,5.63100001]
[1757352347322,7.19095473,4337.2,4337.1,5.63100001]
[1757352347630,10.40695473,4337.2,4337.1,5.63100001]
[1757352348015,10.09435473,4337.2,4337.1,5.63100001]
[1757352348227,10.09435473,4337.2,4337.1,8.34960001]
[1757352348228,9.30235473,4337.2,4337.1,8.34960001]
[1757352348531,4.92,4337.2,4337.1,11.80360001]
[1757352348701,4.92,4337.2,4337.1,12.49511911]
[1757352350002,6.15,4337.2,4337.1,12.49511911]
[1757352351602,7.38,4337.2,4337.1,12.49511911]
[1757352351807,7.38,4337.2,4337.1,11.80360001]
[1757352352905,8.61,4337.2,4337.1,11.80360001]
[1757352354247,9.84,4337.2,4337.1,11.80360001]
[1757352355597,11.07,4337.2,4337.1,11.80360001]
[1757352357139,12.3,4337.2,4337.1,11.80360001]
[1757352358416,13.53,4337.2,4337.1,11.80360001]
[1757352359838,14.76,4337.2,4337.1,11.80360001]
[1757352360903,14.76,4337.2,4337.1,11.35160001]
[1757352361240,15.99,4337.2,4337.1,11.78660001]
[1757352362514,17.22,4337.2,4337.1,11.78660001]
[1757352363406,17.22,4337.2,4337.1,4.77100001]
[1757352363407,19.1266,4337.2,4337.1,4.77100001]
[1757352363610,25.07863497,4337.2,4337.1,5.63100001]
[1757352363912,26.30863497,4337.2,4337.1,5.63100001]
[1757352364139,26.30863497,4337.2,4337.1,8.63100001]
[1757352364412,21.1486,4337.2,4337.1,8.63100001]
[1757352365124,23.45423497,4337.2,4337.1,8.63100001]
[1757352365325,24.68423497,4337.2,4337.1,8.63100001]
[1757352365726,22.3786,4337.2,4337.1,8.63100001]
[1757352366054,24.68423497,4337.2,4337.1,8.63100001]
[1757352366414,25.13733497,4337.2,4337.1,8.63100001]
[1757352366618,27.53863497,4337.2,4337.1,8.63100001]
[1757352366818,28.76963497,4337.2,4337.1,8.63100001]
[1757352367150,31.19363497,4337.2,4337.1,8.63000001]
[1757352367351,31.19363497,4337.2,4336.8,0.025]
[1757352367352,5.52179446,4336.9,4336.8,0.025]
[1757352367527,12.40913414,4336.9,4336.8,5.654]
[1757352367730,15.44813414,4336.9,4336.8,5.654]
[1757352368129,8.56079446,4336.9,4336.8,5.654]
[1757352368331,9.79079446,4336.9,4336.8,5.654]
[1757352368531,11.79090202,4336.9,4336.8,5.654]
[1757352369666,13.02090202,4336.9,4336.8,5.654]
[1757352370248,4.46010756,4336.9,4336.8,5.654]
[1757352370566,2.46,4336.9,4336.8,11.8797]
[1757352371119,3.69,4336.9,4336.8,11.8797]
[1757352371863,4.7778,4336.9,4336.8,8.654]
[1757352372534,8.4318,4336.9,4336.8,4.794]
[1757352372739,13.35759446,4336.9,4336.8,8.663]
[1757352372940,15.62550243,4336.9,4336.8,8.663]
[1757352373133,13.31970797,4336.9,4336.8,8.663]
[1757352373338,13.02390797,4336.9,4336.8,8.663]
[1757352373618,13.31970797,4336.9,4336.8,8.663]
[1757352373824,15.62550243,4336.9,4336.8,8.663]
[1757352374055,14.54970797,4336.9,4336.8,8.663]
[1757352375330,14.25390797,4336.9,4336.8,8.663]
[1757352375529,15.48390797,4336.9,4336.8,8.663]
[1757352376153,15.48390797,4336.9,4336.8,11.4537]
[1757352376327,15.48390797,4336.9,4336.8,11.8887]
[1757352376929,19.31550243,4336.9,4336.8,8.663]
[1757352377146,17.00970797,4336.9,4336.8,8.663]
[1757352377556,19.31550243,4336.9,4336.8,8.663]
[1757352378197,19.31550243,4336.9,4336.8,4.794]
[1757352378470,20.88860243,4336.9,4336.8,8.66]
[1757352378943,20.54550243,4336.9,4336.8,8.66]
[1757352379272,18.12850797,4336.9,4336.8,8.66]
[1757352379476,12.10790797,4336.9,4336.8,8.9713]
[1757352379677,12.10790797,4336.9,4336.8,11.8857]
[1757352379970,13.33790797,4336.9,4336.8,8.9713]
[1757352380172,13.33790797,4336.9,4336.8,9.4063]
[1757352380542,13.33790797,4336.9,4336.8,8.9713]
[1757352380753,13.33790797,4336.9,4336.8,8.66]
[1757352381166,14.56790797,4336.9,4336.8,8.66]
[1757352381732,14.56790797,4336.9,4336.8,8.9713]
[1757352381927,14.56790797,4336.9,4336.8,11.8857]
[1757352382673,16.58990797,4336.9,4336.8,8.66]
[1757352383735,16.58990797,4336.9,4336.8,8.9713]
[1757352383935,16.58990797,4336.9,4336.8,11.8857]
[1757352384136,17.81990797,4336.9,4336.8,11.8857]
[1757352384962,20.43990797,4336.9,4336.8,11.8877]
[1757352385498,21.66990797,4336.9,4336.8,11.8877]
[1757352385708,18.61,4336.9,4336.8,11.8877]
[1757352386899,17.22,4336.9,4336.8,11.8877]
[1757352388176,18.45,4336.9,4336.8,11.8877]
[1757352389578,19.68,4336.9,4336.8,11.8877]
[1757352389788,19.68,4336.9,4336.8,17.4177]
[1757352391009,20.91,4336.9,4336.8,17.4177]
[1757352392293,22.14,4336.9,4336.8,17.4177]
[1757352393821,23.37,4336.9,4336.8,17.4177]
[1757352395322,24.6,4336.9,4336.8,17.4177]
[1757352396606,25.83,4336.9,4336.8,17.4177]
[1757352398287,27.06,4336.9,4336.8,17.4177]
[1757352399849,28.29,4336.9,4336.8,17.4177]
[1757352401233,29.52,4336.9,4336.8,17.4177]
[1757352402170,29.52,4336.9,4336.8,49.22882]
[1757352402388,29.52,4336.9,4336.8,49.52143771]
[1757352402864,30.75,4336.9,4336.8,50.31343771]
[1757352403065,30.75,4336.9,4336.8,52.96103771]
[1757352403235,30.75,4336.9,4336.8,52.73063771]
[1757352403443,30.75,4336.9,4336.8,48.07263771]
[1757352403655,30.75,4336.9,4336.8,51.93663771]
[1757352404120,31.98,4336.9,4336.8,51.93663771]
[1757352405147,31.98,4336.9,4336.8,47.78002]
[1757352405340,31.98,4336.9,4336.8,51.64502]
[1757352405658,33.21,4336.9,4336.8,51.64502]
[1757352406478,33.21,4336.9,4336.8,51.64402]
[1757352407082,34.44,4336.9,4336.8,51.64402]
[1757352408499,35.67,4336.9,4336.8,10.1167]
[1757352408799,35.67,4336.9,4336.8,13.8274]
[1757352409026,35.67,4336.9,4336.8,14.2962]
[1757352409152,35.67,4336.9,4336.8,17.2962]
[1757352409596,35.67,4336.9,4336.8,14.4798]
[1757352409768,36.9,4336.9,4336.8,14.4798]
[1757352410796,36.9,4336.9,4336.8,14.19]
[1757352411011,37.1052,4336.9,4336.8,10.326]
[1757352411199,38.3352,4336.9,4336.8,14.191]
[1757352411685,38.3352,4336.9,4336.8,14.19]
[1757352411883,40.60310797,4336.9,4336.8,14.19]
[1757352412207,38.3352,4336.9,4336.8,14.19]
[1757352412576,39.5652,4336.9,4336.8,14.19]
[1757352414535,40.7952,4336.9,4336.8,14.19]
[1757352416072,42.0252,4336.9,4336.8,14.19]
[1757352416673,42.0252,4336.9,4336.8,10.326]
[1757352416912,44.29310797,4336.9,4336.8,14.188]
[1757352417586,45.52310797,4336.9,4336.8,14.188]
[1757352417995,45.95580797,4336.9,4336.8,14.188]
[1757352419164,47.18580797,4336.9,4336.8,14.188]
[1757352420080,46.75310797,4336.9,4336.8,14.188]
[1757352420373,47.98310797,4336.9,4336.8,14.188]
[1757352421815,49.21310797,4336.9,4336.8,14.188]
[1757352422184,49.64580797,4336.9,4336.8,14.188]
[1757352422879,52.09150797,4336.9,4336.8,10.326]
[1757352423084,52.09150797,4336.9,4336.8,14.186]
[1757352423431,53.32150797,4336.9,4336.8,14.186]
[1757352423878,50.87580797,4336.9,4336.8,14.186]
[1757352424656,51.67310797,4336.9,4336.8,14.186]
[1757352425052,52.10580797,4336.9,4336.8,14.186]
[1757352425269,51.67310797,4336.9,4336.8,14.186]
[1757352426495,52.90310797,4336.9,4336.8,14.186]
[1757352427207,52.69790797,4336.9,4336.8,14.9282]
[1757352427347,50.43,4336.9,4336.8,17.48753763]
[1757352427998,51.66,4336.9,4336.8,17.48753763]
[1757352428341,51.66,4336.9,4336.8,17.1934]
[1757352428787,51.66,4336.9,4336.8,17.48753763]
[1757352429505,52.89,4336.9,4336.8,17.48753763]
[1757352430103,52.89,4336.9,4336.8,19.3056449]
[1757352430605,52.89,4336.9,4336.8,19.8056449]
[1757352430905,54.12,4336.9,4336.8,19.8056449]
[1757352432557,55.35,4336.9,4336.8,19.51150727]
[1757352433279,55.35,4336.9,4336.8,13.4035]
[1757352433608,55.35,4336.9,4336.8,13.8334]
[1757352433886,56.58,4336.9,4336.8,17.6934]
[1757352434767,56.6952,4336.9,4336.8,17.98753763]
[1757352435283,57.9252,4336.9,4336.8,17.98753763]
[1757352435488,57.9252,4336.9,4336.8,19.8556449]
[1757352436763,59.1552,4336.9,4336.8,19.8556449]
[1757352437720,59.1552,4336.9,4336.8,49.8556449]
[1757352438217,60.3852,4336.9,4336.8,49.8556449]
[1757352439075,60.3852,4336.9,4336.8,44.1605449]
[1757352439419,60.27,4336.9,4336.8,17.6934]
[1757352439588,61.5,4336.9,4336.8,17.6934]
[1757352441393,62.73,4336.9,4336.8,17.6934]
[1757352442401,62.71472375,4336.9,4336.8,17.6934]
[1757352442776,63.94472375,4336.9,4336.8,17.6934]
[1757352444181,65.17472375,4336.9,4336.8,17.6934]
[1757352445588,66.40472375,4336.9,4336.8,17.6934]
[1757352447127,67.63472375,4336.9,4336.8,17.6934]
[1757352448626,68.86472375,4336.9,4336.8,17.6934]
[1757352449686,68.86472375,4336.9,4336.8,15.4282]
[1757352450037,68.86472375,4336.9,4336.8,14.9983]
[1757352450328,70.09472375,4336.9,4336.8,15.4282]
[1757352450490,70.09472375,4336.9,4336.8,14.9983]
[1757352451413,70.38712375,4336.9,4336.8,10.826]
[1757352451604,71.61712375,4336.9,4336.8,14.681]
[1757352453344,72.84712375,4336.9,4336.8,14.681]
[1757352454125,77.59243172,4336.9,4336.8,10.826]
[1757352454330,75.46143172,4336.9,4336.8,14.681]
[1757352454528,76.34503172,4336.9,4336.8,14.681]
[1757352454748,74.07712375,4336.9,4336.8,14.681]
[1757352456017,75.30712375,4336.9,4336.8,14.681]
[1757352457398,76.53712375,4336.9,4336.8,14.681]
[1757352458663,77.76712375,4336.9,4336.8,14.681]
[1757352458946,82.51243172,4336.9,4336.8,14.681]
[1757352459151,80.38143172,4336.9,4336.8,14.681]
[1757352460014,81.61143172,4336.9,4336.8,14.681]
[1757352461241,79.34352375,4336.9,4336.8,14.681]
[1757352461412,80.22712375,4336.9,4336.8,14.681]
[1757352462143,80.57352375,4336.9,4336.8,14.681]
[1757352462326,80.22712375,4336.9,4336.8,14.681]
[1757352463039,81.45712375,4336.9,4336.8,14.681]
[1757352463414,81.16472375,4336.9,4336.8,14.9771]
[1757352464014,81.16472375,4336.9,4336.8,18.22953763]
[1757352464199,82.39472375,4336.9,4336.8,18.22953763]
[1757352465628,83.62472375,4336.9,4336.8,14.681]
[1757352465939,83.62472375,4336.9,4336.8,10.826]
[1757352466140,83.62472375,4336.9,4336.8,14.681]
[1757352466501,83.82182375,4336.9,4336.8,10.826]
[1757352466702,86.08973172,4336.9,4336.8,14.681]
[1757352466903,84.85472375,4336.9,4336.8,14.681]
[1757352467497,85.05182375,4336.9,4336.8,14.681]
[1757352467702,85.49252375,4336.9,4336.8,14.681]
[1757352467902,85.05182375,4336.9,4336.8,14.681]
[1757352468342,86.28182375,4336.9,4336.8,14.681]
[1757352469289,86.08472375,4336.9,4336.8,14.681]
[1757352469780,87.31472375,4336.9,4336.8,14.681]
[1757352469951,87.51182375,4336.9,4336.8,14.681]
[1757352470939,88.74182375,4336.9,4336.8,14.681]
[1757352471259,91.00973172,4336.9,4336.8,14.681]
[1757352472478,92.23973172,4336.9,4336.8,14.681]
[1757352473185,92.04363172,4336.9,4336.8,14.681]
[1757352473549,92.24073172,4336.9,4336.8,14.681]
[1757352473748,93.27363172,4336.9,4336.8,14.681]
[1757352473953,91.00572375,4336.9,4336.8,15.4373]
[1757352474183,91.00572375,4336.9,4336.8,17.4752]
[1757352474351,91.00572375,4336.9,4336.8,17.9354]
[1757352475265,92.23572375,4336.9,4336.8,17.9354]
[1757352476191,92.23572375,4336.9,4336.8,10.826]
[1757352476399,94.70073172,4336.9,4336.8,14.681]
[1757352476605,95.93073172,4336.9,4336.8,14.681]
[1757352477097,95.73363172,4336.9,4336.8,14.681]
[1757352477283,93.46572375,4336.9,4336.8,14.681]
[1757352477943,93.46572375,4336.9,4336.8,45.73143763]
[1757352478058,93.46572375,4336.9,4336.8,48.4691786]
[1757352478059,89.69572375,4336.9,4336.8,48.4691786]
[1757352478415,87.19492375,4336.9,4336.8,50.7711786]
[1757352479108,87.19492375,4336.9,4336.8,50.53153763]
[1757352479317,87.19492375,4336.9,4336.8,46.4463456]
[1757352479467,88.42492375,4336.9,4336.8,50.01120797]
[1757352480077,88.42492375,4336.9,4336.8,46.15220797]
[1757352480283,88.42492375,4336.9,4336.8,50.01020797]
[1757352480483,88.42492375,4336.9,4336.8,46.15220797]
[1757352480714,88.42492375,4336.9,4336.8,50.01120797]
[1757352480893,89.65492375,4336.9,4336.8,20.01120797]
[1757352481068,89.65492375,4336.9,4336.8,50.01120797]
[1757352481410,89.65492375,4336.9,4336.8,50.3053456]
[1757352482609,90.88492375,4336.9,4336.8,50.3053456]
[1757352483922,92.11492375,4336.9,4336.8,51.3277456]
[1757352484071,91.83853047,4336.9,4336.8,51.3277456]
[1757352484472,91.83853047,4336.9,4336.8,47.2383456]
[1757352484708,91.83853047,4336.9,4336.8,53.39624818]
[1757352485285,93.06853047,4336.9,4336.8,53.16584818]
[1757352485910,93.06853047,4336.9,4336.8,49.30584818]
[1757352486122,93.06853047,4336.9,4336.8,46.15220797]
[1757352486417,93.06853047,4336.9,4336.8,50.01120797]
[1757352486582,94.29853047,4336.9,4336.8,50.01120797]
[1757352487616,94.29853047,4336.9,4336.8,15.69200797]
[1757352487915,94.29853047,4336.9,4336.8,47.7324]
[1757352488209,95.52853047,4336.9,4336.8,48.93373763]
[1757352488576,95.52853047,4336.9,4336.8,51.00124021]
[1757352488802,95.52853047,4336.9,4336.8,48.93373763]
[1757352489111,95.52853047,4336.9,4336.8,51.23164021]
[1757352489312,95.52853047,4336.9,4336.8,53.49954818]
[1757352489471,96.75853047,4336.9,4336.8,51.4320456]
[1757352489678,96.75853047,4336.9,4336.8,50.90750797]
[1757352490890,97.98853047,4336.9,4336.8,50.90750797]
[1757352492373,99.21853047,4336.9,4336.8,50.90750797]
[1757352492566,99.21853047,4336.9,4336.8,51.2016456]
[1757352492976,99.21853047,4336.9,4336.8,53.26914818]
[1757352493392,99.21853047,4336.9,4336.8,51.2016456]
[1757352493886,100.44853047,4336.9,4336.8,51.2016456]
[1757352494214,100.44853047,4336.9,4336.8,51.4320456]
[1757352494414,100.44853047,4336.9,4336.8,53.49954818]
[1757352495087,101.67853047,4336.9,4336.8,53.49954818]
[1757352496510,102.90853047,4336.9,4336.8,53.49954818]
[1757352497086,102.90853047,4336.9,4336.8,51.4347456]
[1757352497523,102.63215418,4336.9,4336.8,51.4347456]
[1757352497820,102.63215418,4336.9,4336.8,51.4320456]
[1757352498113,103.86215418,4336.9,4336.8,51.4320456]
[1757352499412,105.09215418,4336.9,4336.8,51.4320456]
[1757352500671,106.32215418,4336.9,4336.8,51.13590797]
[1757352501577,106.32215418,4336.9,4336.8,46.59920797]
[1757352501778,106.32215418,4336.9,4336.8,51.13490797]
[1757352502219,107.55215418,4336.9,4336.8,51.13490797]
[1757352502721,107.55215418,4336.9,4336.8,50.68560797]
[1757352502925,110.07325418,4336.9,4336.8,40.2432]
[1757352503226,110.07325418,4336.9,4336.8,47.0992]
[1757352503597,111.30325418,4336.9,4336.8,47.0992]
[1757352505286,112.53325418,4336.9,4336.8,47.0992]
[1757352505796,112.34035418,4336.9,4336.8,47.0992]
[1757352506598,113.57035418,4336.9,4336.8,47.0992]
[1757352507132,113.76585418,4336.9,4336.8,47.0992]
[1757352507288,113.76585418,4336.9,4336.8,49.16494971]
[1757352507884,113.76585418,4336.9,4336.8,43.2432]
[1757352508092,114.99585418,4336.9,4336.8,47.0972]
[1757352509734,116.22585418,4336.9,4336.8,47.0972]
[1757352510830,116.03035418,4336.9,4336.8,47.0972]
[1757352511029,117.26035418,4336.9,4336.8,49.6592456]
[1757352512242,117.26035418,4336.9,4336.8,47.39133763]
[1757352512389,118.49035418,4336.9,4336.8,47.39133763]
[1757352513325,118.68825418,4336.9,4336.8,47.39133763]
[1757352513722,118.68825418,4336.9,4336.8,47.0972]
[1757352514046,119.91825418,4336.9,4336.8,47.0972]
[1757352515069,119.91825418,4336.9,4336.8,47.3276]
[1757352515268,121.14825418,4336.9,4336.8,47.3276]
[1757352515851,121.14825418,4336.9,4336.8,43.2432]
[1757352516012,121.14825418,4336.9,4336.8,47.0972]
[1757352516534,122.37825418,4336.9,4336.8,47.0972]
[1757352516862,122.81815418,4336.9,4336.8,10.826]
[1757352517154,125.08606215,4336.9,4336.8,14.68]
[1757352517512,125.08606215,4336.9,4336.8,11.68]
[1757352517715,125.08606215,4336.9,4336.8,7.826]
[1757352518051,126.31606215,4336.9,4336.8,14.68]
[1757352518227,124.04815418,4336.9,4336.8,14.68]
[1757352519230,125.27815418,4336.9,4336.8,14.68]
[1757352520567,124.83825418,4336.9,4336.8,14.68]
[1757352520772,126.06825418,4336.9,4336.8,14.97413763]
[1757352522187,127.29825418,4336.9,4336.8,14.97413763]
[1757352522483,127.29825418,4336.9,4336.8,14.681]
[1757352522892,127.73815418,4336.9,4336.8,14.681]
[1757352523048,130.00606215,4336.9,4336.8,14.681]
[1757352523549,130.79616215,4336.9,4336.8,14.681]
[1757352523919,128.52825418,4336.9,4336.8,14.681]
[1757352525372,129.75825418,4336.9,4336.8,14.681]
[1757352526738,130.98825418,4336.9,4336.8,14.681]
[1757352528033,132.21825418,4336.9,4336.8,14.681]
[1757352529378,132.21825418,4336.9,4336.8,10.826]
[1757352529550,133.44825418,4336.9,4336.8,14.681]
[1757352530175,133.88815418,4336.9,4336.8,14.681]
[1757352530379,133.44825418,4336.9,4336.8,14.681]
[1757352530681,133.88815418,4336.9,4336.8,14.681]
[1757352530829,137.38606215,4336.9,4336.8,14.681]
[1757352532324,138.61606215,4336.9,4336.8,14.681]
[1757352532869,138.61606215,4336.9,4336.8,10.826]
[1757352533105,138.61606215,4336.9,4336.8,14.68]
[1757352533304,138.61606215,4336.9,4336.8,14.18]
[1757352533772,138.61606215,4336.9,4336.8,18.18]
[1757352534086,139.84606215,4336.9,4336.8,14.326]
[1757352534269,139.84606215,4336.9,4336.8,18.181]
[1757352534986,137.13825418,4336.9,4336.8,18.181]
[1757352535512,138.36825418,4336.9,4336.8,18.181]
[1757352535714,138.17035418,4336.9,4336.8,18.181]
[1757352535916,135.84215418,4336.9,4336.8,18.79053763]
[1757352536064,135.84215418,4336.9,4336.8,49.25433763]
[1757352536437,135.84215418,4336.9,4336.8,51.6374456]
[1757352536854,137.07215418,4336.9,4336.8,51.6374456]
[1757352538419,138.30215418,4336.9,4336.8,51.6374456]
[1757352538919,138.30215418,4336.9,4336.8,47.3186456]
[1757352539117,138.30215418,4336.9,4336.8,51.34230797]
[1757352539731,139.53215418,4336.9,4336.8,51.34230797]
[1757352540100,139.53215418,4336.9,4336.8,47.02450797]
[1757352540296,139.53215418,4336.9,4336.8,50.87850797]
[1757352540634,141.96295418,4336.9,4336.8,50.87850797]
[1757352540838,141.96295418,4336.9,4336.8,44.7566]
[1757352541040,141.96295418,4336.9,4336.8,48.6106]
[1757352541206,143.19295418,4336.9,4336.8,49.0521]
[1757352541409,140.76215418,4336.9,4336.8,49.0521]
[1757352541816,140.76215418,4336.9,4336.8,49.34623763]
[1757352542758,141.99215418,4336.9,4336.8,49.34623763]
[1757352543642,141.99215418,4336.9,4336.8,51.6141456]
[1757352544051,143.22215418,4336.9,4336.8,51.6141456]
[1757352545082,143.22215418,4336.9,4336.8,49.34623763]
[1757352545246,143.22215418,4336.9,4336.8,49.0521]
[1757352545599,144.45215418,4336.9,4336.8,49.34623763]
[1757352546756,145.68215418,4336.9,4336.8,49.34623763]
[1757352548180,145.68215418,4336.9,4336.8,45.05073763]
[1757352548387,146.91215418,4336.9,4336.8,49.34623763]
[1757352548680,146.91215418,4336.9,4336.8,51.6141456]
[1757352549675,148.14215418,4336.9,4336.8,51.6141456]
[1757352550786,148.14215418,4336.9,4336.8,47.7601456]
[1757352551084,151.73705418,4336.9,4336.8,50.56310797]
[1757352552374,152.96705418,4336.9,4336.8,50.56310797]
[1757352553705,152.96705418,4336.9,4336.8,57.19610797]
[1757352553872,154.19705418,4336.9,4336.8,57.19610797]
[1757352554287,154.38225418,4336.9,4336.8,24.9282]
[1757352554503,154.38225418,4336.9,4336.8,51.0742]
[1757352554688,154.38225418,4336.9,4336.8,54.9282]
[1757352555189,155.61225418,4336.9,4336.8,54.9282]
[1757352555416,155.42705418,4336.9,4336.8,54.9282]
[1757352556622,156.65705418,4336.9,4336.8,54.9282]
[1757352557725,156.65705418,4336.9,4336.8,55.224]
[1757352557886,157.88705418,4336.9,4336.8,55.6655]
[1757352558475,157.88705418,4336.9,4336.8,55.224]
[1757352558714,157.88705418,4336.9,4336.8,54.9282]
[1757352559608,159.11705418,4336.9,4336.8,54.9282]
[1757352561515,160.34705418,4336.9,4336.8,54.9282]
[1757352561819,160.34705418,4336.9,4336.8,55.224]
[1757352561980,160.34705418,4336.9,4336.8,54.9282]
[1757352562482,160.53225418,4336.9,4336.8,54.9282]
[1757352562825,161.76225418,4336.9,4336.8,54.9282]
[1757352563370,161.76225418,4336.9,4336.8,24.9282]
[1757352563576,161.76225418,4336.9,4336.8,54.9282]
[1757352563997,162.99225418,4336.9,4336.8,54.9282]
[1757352564408,162.99225418,4336.9,4336.8,24.9282]
[1757352564600,162.99225418,4336.9,4336.8,54.9282]
[1757352565420,164.22225418,4336.9,4336.8,54.9282]
[1757352566927,165.45225418,4336.9,4336.8,54.9282]
[1757352567345,165.26705418,4336.9,4336.8,54.9282]
[1757352568016,165.26705418,4336.9,4336.8,55.6655]
[1757352568217,166.49705418,4336.9,4336.8,55.95963763]
[1757352569276,166.49705418,4336.9,4336.8,55.51813763]
[1757352569460,164.13215418,4336.9,4336.8,55.95963763]
[1757352569768,165.36215418,4336.9,4336.8,55.95963763]
[1757352570141,167.72705418,4336.9,4336.8,55.95963763]
[1757352570638,167.72705418,4336.9,4336.8,54.9282]